{"text_format":"3","workbook":"xlsx","n_sheets":1,"sheets":["Sheet1"],"read":"whole","date_system":"1900"}

{"sheet":"Sheet1","index":0,"n_rows":51,"n_cols":5,"rows_kept":51,"merged":[[0,0,0,1]]}
["Common Kitchen Items",null,"Quatity","Price","Total"]
["EA","HALF SIZE GAUGE 13\" X 18\" WIRE IN RIM ALUMINUM SHEET PAN ",216,{"v":0,"d":"$0.00"},{"$f":"C2*D2","v":0}]
["EA","12\" FINE CHINA CAP STRAINER",{"$f":"36","v":36},{"v":0,"d":"$0.00"},{"$f":"C3*D3","v":0}]
["EA","12\" COARSE CHINA CAP STRAINER",{"$f":"36","v":36},{"v":0,"d":"$0.00"},0]
["EA","24\" OVEN MITT WITH KEVLAR AND NOMEX",144,{"v":0,"d":"$0.00"},0]
["EA","HIGH OUTPUT COMPLETE FRUIT/VEGETABLE CUTTING SET 1/4\" DICE , 1/4\" SLICE, 8 SECTION WEDGE",{"$f":"36","v":36},{"v":0,"d":"$0.00"},0]
["EA","BLACK UTILITY/BUSSING CART WITH 3 SHELVES 42\" X 20\"",36,{"v":0,"d":"$0.00"},0]
["EA","RSC-432 SAFETY CUTTER WITH AUTO LOCKING SAFETY HOOD",72,{"v":0,"d":"$0.00"},0]
["EA","14\" POT / COOK'S FORK",36,{"v":0,"d":"$0.00"},0]
["EA","3 1/4\" PARING KNIFE SET WITH 1 SERRATED AND 2 SMOOTH EDGE KNIFE WITH WHITE HANDLES",{"$f":"36","v":36},{"v":0,"d":"$0.00"},0]
["EA","5 PIECE BAMBOO MAGNETIC BOARD AND GREEN HANDLE KNIFE SET ",{"$f":"36*2","v":72},{"v":0,"d":"$0.00"},0]
["EA","10\" REGULAR CUT KNIFE SHARPENING STEEL WITH BLACK PLASTIC HANDLE",36,{"v":0,"d":"$0.00"},0]
["EA","2 STAGE STANDARD DUTY ELECTRIC KNIFE SHARPENER",36,{"v":0,"d":"$0.00"},0]
["EA","16 QT ALUMINUM COLANDER WITH BASE AND HANDLES",36,{"v":0,"d":"$0.00"},0]
["EA","8\" X 10\" 1/2 FOOTED COOLING RACK / PAN GRATE FOR STEAM TABLE PAN",{"$f":"36*4","v":144},{"v":0,"d":"$0.00"},0]
["EA","10\" X 18\" FULL SIZE FOOTED COOLING RACK / PAN GRATE FOR STEAM TABLE PAN",{"$f":"36*2","v":72},{"v":0,"d":"$0.00"},0]
["EA","4 PIECES STAINLESS STEEL ROUND MEASURING SPOON SET",36,{"v":0,"d":"$0.00"},0]
["EA","5 PIECE CLEAR POLYCARBONATE MEASURING CUP SET ",36,{"v":0,"d":"$0.00"},0]
["EA","STANDARD WEIGHT STAINLESS STEEL MIXING BOWLS 5/SET",{"$f":"36*2","v":72},{"v":0,"d":"$0.00"},0]
["EA","9 3/4\" X 4\" STAINLESS STEEL CHOCOLATE SCRAPER WITH PLASTIC HANDLE",36,{"v":0,"d":"$0.00"},0]
["EA","6\" X 4 1/2\" STAINLESS STEEL DOUGH CUTTER / SCRAPER WITH WHITE HANDLE",{"$f":"36*4","v":144},{"v":0,"d":"$0.00"},0]
["EA","5 1/2\" x 3 3/4\" STRAIGHT EDGE PLASTIC BOWL SCRAPER",{"$f":"6*36","v":216},{"v":0,"d":"$0.00"},0]
["EA","BAGEL SCOOP / WIRE SKIMMER 32\" X 14\"",36,{"v":0,"d":"$0.00"},0]
["EA","3\" PASTRY/BASTING BRUSH WITH HOOK AND CONCAVE HEAD",{"$f":"36*2","v":72},{"v":0,"d":"$0.00"},0]
["EA","21\" X 11\" PRE-SEASONED REVERSIBLE CAST IRON GRIDDLE AND GRILL PAN WITH HANDLES",36,{"v":0,"d":"$0.00"},0]
["EA","14\" HIGH TEMPERATURE SILICONE SPATULA",216,{"v":0,"d":"$0.00"},0]
["EA","22\" STAINLESS STEEL FRENCH WHIP/WHISK",36,{"v":0,"d":"$0.00"},0]
["EA","16\" STAINLESS STEEL FRENCH WHIP / WHISK ",36,{"v":0,"d":"$0.00"},0]
["EA","11\" STAINLESS STEEL HOLLOW HANDLE PASTRY SERVER WITH MIRROR FINISH",{"$f":"4*36","v":144},{"v":0,"d":"$0.00"},0]
["EA","30\" STAINLESS STEEL PADDLE",36,{"v":0,"d":"$0.00"},0]
["EA","5 1/8\" X 2 7/8\" STAINLESS STEEL SOLID TURNER WITH WHITE PROPYLENE HANDLE",36,{"v":0,"d":"$0.00"},0]
["EA","8\" X 3\" FLEXIBLE SOLID TURNER WITH ROUND BLADE AND WOOD HANDLE",36,{"v":0,"d":"$0.00"},0]
["EA","12\" STAINLESS STEEL BLACK SCALLOPED COATED HANDLE TONGS",144,{"v":0,"d":"$0.00"},0]
["EA","2 OZ STAINLESS STEEL TWO-PIECE LADLE",36,{"v":0,"d":"$0.00"},0]
["EA","16 OZ STAINLESS STEEL TWO-PIECE LADLE",36,{"v":0,"d":"$0.00"},0]
["EA","12 OZ STAINLESS STEEL TWO-PIECE LADLE",36,{"v":0,"d":"$0.00"},0]
["EA","11\" STANDARD DUTY SLOTTED STAINLESS STEEL BASTING SPOON",{"$f":"36*3","v":108},{"v":0,"d":"$0.00"},0]
["EA","13\" STANDARD DUTY SLOTTED STAINLESS STEEL BASTING SPOON",{"$f":"36*3","v":108},{"v":0,"d":"$0.00"},0]
["EA","11\" STANDARD DUTY STAINLESS STEEL BASTING SPOON",{"$f":"3*36","v":108},{"v":0,"d":"$0.00"},0]
["EA","13\" STANDARD DUTY STAINLESS STEEL BASTING SPOON",{"$f":"3*36","v":108},{"v":0,"d":"$0.00"},0]
["EA","8 PIECE STANDARD WEIGHT ALUMINUM STOCK POT SET WITH 8QT, 10QT, 12 QT, 16 QT AND COVERS",{"$f":"36","v":36},{"v":0,"d":"$0.00"},0]
["EA","25 QT STAINLESS STEEL ALUMINUM-CLAD HEAVY DUTY BRAZIER WITH COVER",36,{"v":0,"d":"$0.00"},0]
["EA","8 PIECE INDUCTION READY STAINLESS STEEL COOKWARE SET WITH 2QT, 6QT SAUCE PANS, 20QT STOCK POT W/ COVERS, 9.5\" NON STICK FRYING PAN",36,{"v":0,"d":"$0.00"},0]
["EA","64 OZ ALUMINUM DIPPER WITH ANGLED HANDLE ",36,{"v":0,"d":"$0.00"},0]
["EA","30QT STANDARD WEIGHT STAINLESS STEEL MIXING BOWL AND STAND WITH LOCKING CASTERS",{"$f":"36","v":36},{"v":0,"d":"$0.00"},0]
["EA","4 QT ALUMINUM MEASURING CUP",36,{"v":0,"d":"$0.00"},0]
["EA","2 QT ALUMINUM MEASURING CUP",36,{"v":0,"d":"$0.00"},0]
["EA","48\" STAINLESS STEEL FRENCH WHIP/WHISK",36,{"v":0,"d":"$0.00"},0]
["EA","CASE OF 12 FULL SIZE 19 GAUGE 18\" X 26\" WIRE IN RIM ALUMINUM BUN PANS / SHEET PANS",180,{"v":0,"d":"$0.00"},0]
[{"$nulls":3},{"v":0,"d":"$0.00"},0]
[null,null,"Total",null,{"$f":"SUM(E2:E50)","v":0}]